bitfinex-derivatives/quotes_ETHF0:USTF0_20260314
["timestamp","ask_amount","ask_price","bid_price","bid_amount"]
[1773501791421,2.04852629,2077.5,2077.1,4.68104133]
[1773501795727,2.04852629,2077.5,2077.1,4.03672132]
[1773501795931,2.04852629,2077.5,2077.0,0.61884897]
[1773501795932,2.04852629,2077.5,2077.0,4.03672132]
[1773501796129,2.04852629,2077.5,2077.0,4.6549155]
[1773501796329,2.04852629,2077.5,2077.1,0.61156546]
[1773501803444,2.04852629,2077.5,2077.0,4.03672132]
[1773501803638,2.04852629,2077.5,2077.0,4.57710676]
[1773501806341,2.04852629,2077.5,2077.1,0.51309401]
[1773501809347,2.04852629,2077.5,2077.0,4.52414879]
[1773501810548,2.04852629,2077.5,2077.0,4.03672132]
[1773501811748,2.04852629,2077.5,2077.0,4.50307953]
[1773501830862,2.04852629,2077.5,2077.1,0.31709555]
[1773501831058,2.04852629,2077.5,2077.0,4.35381687]
[1773501834565,2.04852629,2077.5,2077.1,0.29192229]
[1773501839866,2.04852629,2077.5,2077.0,4.03672132]
[1773501840066,1.64783739,2077.1,2076.8,6.05678184]
[1773501840267,1.64783739,2077.1,2076.7,0.92217914]
[1773501842771,1.64783739,2077.1,2076.4,1.64477588]
[1773501845365,1.64783739,2076.7,2076.2,0.00433203]
[1773501846568,1.64783739,2076.7,2076.2,1.62393487]
[1773501847467,1.64783739,2076.7,2076.2,0.00433203]
[1773501847967,1.64783739,2076.7,2076.1,1.61327463]
[1773501848769,1.64783739,2076.7,2075.8,1.60358193]
[1773501848972,1.64783739,2076.7,2075.8,1.60839737]
[1773501849767,1.52103771,2076.6,2075.8,1.60839737]
[1773501849966,1.64783739,2076.5,2075.8,1.60839737]
[1773501855772,1.64783739,2076.3,2075.8,1.60839737]
[1773501869985,1.64783739,2076.3,2075.5,1.63625787]
[1773501870285,6.02139719,2076.3,2075.3,1.63625787]
[1773501870486,1.7707194,2076.2,2075.3,1.63625787]
[1773501871084,1.7707194,2076.2,2075.3,1.64148604]
[1773501871285,1.7707194,2076.1,2075.3,1.64148604]
[1773501878505,1.7707194,2076.2,2075.3,1.64148604]
[1773501889308,4.02381897,2076.3,2075.3,1.64148604]
[1773501889502,1.7707194,2076.4,2075.3,1.64148604]
[1773501889902,1.7707194,2076.4,2075.4,1.29056853]
[1773501891199,1.7707194,2076.4,2075.5,1.29507095]
[1773501904227,1.7707194,2076.4,2075.6,1.15835168]
[1773501905726,1.72110021,2076.6,2075.7,1.14400488]
[1773501917532,1.71491837,2076.8,2076.0,1.10148228]
[1773501917734,1.71491837,2077.0,2076.3,1.10148228]
[1773501918229,1.71491837,2077.0,2076.0,6.03709908]
[1773501918429,1.71491837,2077.0,2076.1,1.09001447]
[1773501918730,1.71997289,2077.0,2076.1,1.09001447]
[1773501919028,1.71997289,2077.0,2076.2,1.07993983]
[1773501922735,0.00505452,2077.0,2076.4,1.02279735]
[1773501923539,1.62069238,2077.0,2076.4,1.02279735]
[1773501932647,1.62069238,2077.0,2076.2,0.90516489]
[1773501938254,1.61563786,2076.8,2076.2,0.90516489]
[1773501944557,1.61563786,2076.8,2076.0,6.86185075]
[1773501944749,1.61563786,2076.8,2076.1,0.82475167]
[1773501945155,1.61563786,2076.8,2076.1,6.86185075]
[1773501945461,1.61563786,2076.8,2076.2,0.81729886]
[1773501945652,1.52175502,2076.7,2076.1,6.03709908]
[1773501945858,1.61563786,2076.4,2075.9,6.85439794]
[1773501946057,1.61563786,2076.4,2075.9,0.81729886]
[1773501946258,1.61563786,2076.4,2076.0,0.81670027]
[1773501951367,1.59503979,2076.9,2076.0,0.81670027]
[1773501951965,1.59503979,2076.7,2076.0,0.81670027]
[1773501960972,1.52175502,2076.6,2075.9,6.03709908]
[1773501961271,1.59503979,2076.3,2075.8,1.07034684]
[1773501961672,1.59503979,2076.3,2075.7,7.10118387]
[1773501961874,1.59503979,2076.3,2075.7,1.06408479]
[1773501962777,1.59503979,2076.3,2075.6,7.11055628]
[1773501962973,1.59503979,2076.3,2075.6,1.0734572]
[1773501963377,1.59503979,2076.1,2075.5,6.03709908]
[1773501964268,1.59503979,2076.1,2075.4,7.10591956]
[1773501964673,1.59503979,2076.1,2075.4,7.34922181]
[1773501967179,1.59503979,2076.1,2075.5,1.0523622]
[1773501970279,1.59503979,2076.1,2075.4,7.31495354]
[1773501972683,1.59503979,2076.1,2075.5,1.01802154]
[1773501986695,1.59503979,2076.1,2075.6,0.91177839]
[1773501987992,4.0335364,2076.7,2075.6,0.91177839]
[1773501988195,1.40367172,2077.1,2076.4,1.45127853]
[1773501988595,1.40872624,2077.0,2076.4,1.45127853]
[1773501988797,1.40367172,2077.1,2076.5,1.45127853]
[1773501989797,1.40767103,2077.1,2076.5,1.45127853]
[1773501994501,1.40367172,2077.2,2076.5,1.45127853]
[1773501994896,1.40367172,2077.5,2076.5,1.45127853]
[1773501995292,1.40367172,2077.5,2076.7,1.45127853]
[1773501995494,1.40923267,2077.5,2076.7,1.45127853]
[1773501996398,1.40923267,2077.5,2076.6,40.8]
[1773501996804,1.40923267,2077.5,2076.7,1.45127853]
[1773501997297,1.40923267,2077.5,2076.6,40.8]
[1773501997603,1.40923267,2077.5,2076.5,1.45127853]
[1773501998003,1.40923267,2077.5,2076.5,42.25127853]
[1773501998303,1.40923267,2077.5,2076.6,1.45127853]
[1773502015214,1.40923267,2077.5,2076.6,5.45251429]
[1773502015413,1.40923267,2077.5,2076.7,1.50711223]
[1773502017210,1.40923267,2077.5,2076.8,4.00123576]
[1773502017517,1.40923267,2077.5,2076.8,4.00602504]
[1773502018415,1.40923267,2077.5,2076.8,5.51313727]
[1773502020113,1.40923267,2077.5,2076.9,1.50711223]
[1773502020518,1.13631101,2077.6,2077.0,1.50711223]
[1773502021617,1.14130272,2077.6,2077.0,1.50711223]
[1773502023022,1.14130272,2077.6,2077.1,1.50711223]
[1773502030119,0.00499171,2077.6,2077.1,1.50711223]
[1773502030322,1.53214692,2077.7,2077.1,1.50711223]
[1773502031423,1.53779499,2077.7,2077.1,1.50711223]
[1773502044935,1.53779499,2077.7,2077.2,1.44756344]
[1773502046534,1.53779499,2077.7,2077.3,1.44756344]
[1773502046835,1.53695131,2077.7,2077.3,1.44756344]
[1773502048731,0.00564807,2077.7,2077.3,1.44756344]
[1773502048937,1.56725414,2077.9,2077.3,1.44756344]
[1773502049939,1.57091854,2077.9,2077.3,1.44756344]
[1773502052349,1.56725414,2078.1,2077.4,1.44756344]
[1773502053145,1.56725414,2077.8,2077.3,5.4487992]
[1773502053345,1.57325082,2077.8,2077.2,1.44756344]
[1773502062155,1.57325082,2077.8,2077.2,5.4487992]
[1773502062754,1.57325082,2077.8,2077.3,1.44756344]
[1773502071964,1.57325082,2077.8,2077.2,4.00123576]
[1773502072564,1.57325082,2077.8,2077.2,5.41175524]
[1773502073866,1.57325082,2077.8,2077.3,1.41051948]
[1773502074562,1.38659254,2077.6,2077.2,4.00123576]
[1773502074866,1.38659254,2077.6,2077.2,1.41051948]
[1773502077163,1.38659254,2077.6,2077.1,5.41175524]
[1773502077364,1.38659254,2077.3,2076.9,1.41051948]
[1773502077569,1.38659254,2077.5,2076.9,1.41051948]
[1773502077767,11.10559254,2077.6,2076.9,1.41051948]
[1773502078967,1.38659254,2077.5,2076.9,1.41051948]
[1773502092279,1.39258922,2077.8,2077.3,1.41051948]
[1773502092683,1.38659254,2077.7,2077.3,1.41051948]
[1773502100482,0.00599668,2077.8,2077.3,1.41051948]
[1773502101790,1.55513969,2077.8,2077.3,1.41051948]
[1773502102791,0.00599668,2077.8,2077.3,1.41051948]
[1773502104189,1.55513969,2077.8,2077.3,1.41051948]
[1773502109390,1.55513969,2077.8,2077.2,1.41948942]
[1773502111598,1.55513969,2077.8,2077.0,6.03709908]
[1773502111896,1.54914301,2077.7,2076.9,1.41948942]
[1773502113393,1.54914301,2077.7,2076.8,0.00478928]
[1773502113799,1.54914301,2077.7,2076.8,1.4242787]
[1773502134721,1.37078859,2077.4,2076.7,1.47838194]
[1773502135721,1.37078859,2077.2,2076.7,1.48438362]
[1773502136819,1.37078859,2077.2,2076.6,0.23409697]
[1773502137024,1.37078859,2077.2,2076.2,6.03709908]
[1773502137623,1.37078859,2077.2,2076.3,0.11677794]
[1773502137822,1.37078859,2077.2,2076.3,0.12211328]
[1773502140523,2.89103365,2077.2,2076.3,0.00533534]
[1773502140719,1.37078859,2077.2,2076.3,0.00533534]
[1773502141121,1.53440602,2077.1,2076.3,0.00533534]
[1773502141625,1.53440602,2077.0,2076.3,0.00533534]
[1773502141922,1.53440602,2077.0,2076.3,0.11877496]
[1773502148934,1.54440602,2077.0,2076.3,0.11877496]
[1773502157142,1.54440602,2077.0,2076.3,0.00533534]
[1773502160738,1.56546993,2076.9,2075.8,6.03709908]
[1773502161643,1.56546993,2076.9,2075.8,6.04078701]
[1773502163551,1.63313521,2076.8,2075.8,6.27672111]
[1773502165247,1.63313521,2076.8,2075.9,6.03709908]
[1773502171649,1.64607914,2076.6,2075.9,6.03709908]
[1773502174249,1.65576596,2076.4,2075.8,0.00368793]
[1773502185659,1.52232764,2075.9,2075.2,12.70527058]
[1773502185960,0.08385835,2076.3,2075.1,1.49424305]
[1773502185961,5.55263597,2076.1,2075.1,1.49424305]
[1773502186258,9.763,2076.0,2075.3,1.49424305]
[1773502186458,7.92810412,2075.9,2075.3,1.49424305]
[1773502186655,7.92810412,2075.8,2075.3,1.49841496]
[1773502186960,1.52593317,2075.6,2075.0,1.49426662]
[1773502187155,4.03374428,2075.9,2074.6,26.75132764]
[1773502187156,4.03374428,2075.9,2075.2,1.49426662]
[1773502187360,1.52593317,2075.7,2075.2,1.49426662]
[1773502187551,7.92325535,2075.7,2075.2,1.49426662]
[1773502187756,7.92325535,2075.6,2075.2,1.49426662]
[1773502188057,1.52593317,2075.6,2075.3,1.47801169]
[1773502192463,1.52593317,2075.6,2075.2,2.29587761]
[1773502192661,1.52593317,2075.6,2075.3,14.99686875]
[1773502192965,1.52593317,2075.6,2075.3,12.70527058]
[1773502193264,1.52593317,2075.6,2075.1,2.29159817]
[1773502193767,2.26279404,2075.8,2075.1,2.29159817]
[1773502193973,2.26279404,2075.8,2074.6,25.229]
[1773502193974,0.00343595,2075.9,2075.3,2.29159817]
[1773502194268,0.00343595,2075.9,2075.5,2.29159817]
[1773502196363,16.13010237,2076.5,2075.7,2.29159817]
[1773502196569,6.17422736,2076.4,2075.9,2.29159817]
[1773502196869,9.837,2076.5,2075.9,2.29159817]
[1773502197462,9.837,2076.5,2076.0,2.29159817]
[1773502197463,9.84126661,2076.5,2076.0,2.29159817]
[1773502198267,1.52232764,2076.3,2075.8,2.29159817]
[1773502198571,2.26279404,2076.3,2075.8,2.29159817]
[1773502198869,2.26279404,2076.4,2075.8,2.29159817]
[1773502199873,2.26279404,2076.3,2075.8,2.29159817]
[1773502201367,12.10406065,2076.5,2075.8,2.29159817]
[1773502201669,2.26279404,2076.4,2075.8,2.29159817]
[1773502201863,2.26279404,2076.1,2075.5,2.29159817]
[1773502202261,1.52232764,2076.0,2075.5,2.29159817]
[1773502202569,2.26279404,2075.9,2075.5,2.29159817]
[1773502204873,2.26279404,2076.1,2075.5,2.29159817]
[1773502205270,2.26279404,2076.3,2075.6,2.29159817]
[1773502209581,6.12081419,2076.2,2075.6,2.29159817]
[1773502212184,8.38360823,2076.2,2075.6,2.29159817]
[1773502212385,2.26279404,2076.2,2075.6,2.29159817]
[1773502212882,1.52232764,2076.0,2075.6,2.29159817]
[1773502213085,2.26279404,2075.9,2075.4,2.29159817]
[1773502213287,2.26279404,2075.7,2075.3,2.29783599]
[1773502213491,2.26279404,2075.7,2075.3,0.00623782]
[1773502213679,2.26279404,2075.7,2075.1,2.29159817]
[1773502214685,2.26279404,2075.7,2075.1,2.29515759]
[1773502219285,2.26279404,2075.9,2075.2,2.29159817]
[1773502219489,8.43790954,2075.8,2075.2,2.29159817]
[1773502219689,2.26279404,2075.8,2075.2,2.29159817]
[1773502221987,2.53519874,2076.1,2075.3,1.52232764]
[1773502222193,2.53519874,2076.3,2075.6,2.5308721]
[1773502227792,2.53519874,2076.3,2075.3,2.5308721]
[1773502227999,2.53519874,2076.1,2075.3,2.5308721]
[1773502229395,2.53519874,2075.9,2075.3,2.5308721]
[1773502230598,2.53519874,2075.7,2075.3,2.5308721]
[1773502231996,2.53519874,2075.7,2075.2,2.5308721]
[1773502237500,2.53519874,2076.0,2075.2,2.5308721]
[1773502237703,2.53519874,2075.8,2075.2,2.5308721]
[1773502240902,2.53519874,2076.0,2075.2,2.5308721]
[1773502241106,8.65685051,2075.9,2075.2,2.5308721]
[1773502241404,2.53519874,2075.9,2075.2,2.5308721]
[1773502242910,2.53519874,2075.9,2075.1,2.53443152]
[1773502243109,2.53519874,2075.7,2075.1,2.53443152]
[1773502253311,2.53519874,2075.7,2074.8,2.50243801]
[1773502253512,2.44995127,2075.5,2074.8,2.50243801]
[1773502253712,2.44995127,2075.3,2074.8,2.50243801]
[1773502254511,2.44995127,2075.3,2074.8,2.50802652]
[1773502259016,6.4802596,2075.6,2074.8,2.50802652]
[1773502259315,2.44995127,2076.0,2074.8,2.50802652]
[1773502259515,2.44995127,2076.0,2075.0,2.50243801]
[1773502259716,2.44995127,2076.0,2075.0,43.30243801]
[1773502259918,2.44995127,2076.0,2075.1,2.50243801]
[1773502261611,2.44995127,2076.0,2074.9,2.50243801]
[1773502262009,2.44995127,2075.9,2074.9,2.50243801]
[1773502265612,2.44995127,2075.9,2074.8,40.80558851]
[1773502265613,2.44995127,2075.5,2074.8,0.00558851]
[1773502265807,2.44995127,2075.3,2074.6,2.50243801]
[1773502267017,2.44995127,2075.3,2074.6,2.50736791]
[1773502268613,2.44995127,2075.5,2074.6,2.50736791]
[1773502268819,12.40695127,2075.5,2074.6,2.50736791]
[1773502269314,2.44995127,2075.4,2074.6,2.50736791]
[1773502271326,9.957,2075.5,2074.6,2.50736791]
[1773502271327,2.44995127,2075.2,2074.6,2.50736791]
[1773502272219,2.44995127,2075.2,2074.6,0.0049299]
[1773502272417,2.44995127,2075.0,2074.5,2.50243801]
[1773502273424,2.45382847,2075.0,2074.5,2.50779931]
[1773502279539,0.0038772,2075.0,2074.5,2.50779931]
[1773502279825,2.45382847,2075.0,2074.5,2.50779931]
[1773502288135,2.45382847,2075.0,2074.5,0.0053613]
[1773502288835,2.45382847,2075.0,2074.5,2.52306047]
[1773502290836,2.45382847,2075.0,2074.5,0.0053613]
[1773502291433,2.45382847,2075.0,2074.5,2.52306047]
[1773502295239,8.35457814,2074.9,2074.5,2.52306047]
[1773502295539,2.33470247,2074.9,2074.5,2.52306047]
[1773502300440,2.33857967,2075.0,2074.5,2.52306047]
[1773502300639,6.0210339,2074.9,2074.5,2.52306047]
[1773502300935,2.33857967,2075.0,2074.5,2.52306047]
[1773502301138,8.35573637,2074.9,2074.5,2.52306047]
[1773502301340,2.33470247,2074.9,2074.5,2.52306047]
[1773502304743,2.33857967,2075.0,2074.5,2.52306047]
[1773502304947,6.02613982,2074.9,2074.5,2.52306047]
[1773502305149,2.33857967,2075.0,2074.5,2.52306047]
[1773502305349,6.02613076,2074.9,2074.5,2.52306047]
[1773502305549,2.33857967,2075.0,2074.5,2.52306047]
[1773502305849,6.02613076,2074.9,2074.5,2.52306047]
[1773502306148,2.33857967,2075.0,2074.5,2.52306047]
[1773502306345,6.0261437,2074.9,2074.5,2.52306047]
[1773502306548,2.33857967,2075.0,2074.5,2.52306047]
[1773502306752,6.02612054,2074.9,2074.5,2.52306047]
[1773502306951,2.33857967,2075.0,2074.5,2.52306047]
[1773502307150,6.02612054,2074.9,2074.5,2.52306047]
[1773502307450,2.33857967,2075.0,2074.5,2.52306047]
[1773502307649,6.02611125,2074.9,2074.5,2.52306047]
[1773502307853,2.33857967,2075.0,2074.5,2.52306047]
[1773502308041,6.02611125,2074.9,2074.5,2.52306047]
[1773502308246,2.33857967,2075.0,2074.5,2.52306047]
[1773502308446,6.02610243,2074.9,2074.5,2.52306047]
[1773502308742,2.33857967,2075.0,2074.5,2.52306047]
[1773502308942,6.02610243,2074.9,2074.5,2.52306047]
[1773502309151,2.33857967,2075.0,2074.5,2.52306047]
[1773502309451,6.02609388,2074.9,2074.5,2.52306047]
[1773502309648,2.33857967,2075.0,2074.5,2.52306047]
[1773502309849,2.39578001,2075.3,2074.7,0.41107497]
[1773502310955,2.40099726,2075.3,2074.7,0.41107497]
[1773502327764,2.50928371,2075.0,2074.5,0.07824402]
[1773502330572,2.50928371,2075.0,2074.5,0.0053613]
[1773502333665,2.50928371,2075.0,2074.0,42.36575204]
[1773502333971,2.50928371,2075.0,2074.1,0.04096995]
[1773502334667,2.50928371,2075.0,2074.1,0.04621124]
[1773502335872,2.49721721,2074.8,2074.1,0.04621124]
[1773502339675,2.49721721,2074.8,2074.1,0.00524129]
[1773502340171,2.4874431,2074.6,2074.1,0.00524129]
[1773502340476,2.48367772,2074.4,2073.8,18.762]
[1773502340975,2.48367772,2074.4,2073.8,59.562]
[1773502341375,2.48367772,2074.4,2073.8,59.64694901]
[1773502341569,0.00192408,2073.8,2072.9,2.49727445]
[1773502341874,5.89743463,2073.7,2072.9,2.49727445]
[1773502342072,0.00192408,2073.6,2072.9,2.49727445]
[1773502342775,0.00547563,2073.6,2072.9,2.50342951]
[1773502344076,0.82641014,2073.5,2072.9,2.50342951]
[1773502344273,0.00355155,2073.6,2072.7,24.28978209]
[1773502344274,0.80679475,2073.3,2072.7,2.5014252]
[1773502344575,0.80679475,2073.1,2072.7,2.5014252]
[1773502344966,0.80679475,2073.1,2072.6,2.5014252]
[1773502345165,0.91097678,2072.9,2072.5,40.8]
[1773502345471,0.91097678,2072.9,2072.6,2.48328676]
[1773502346775,0.27988413,2072.9,2072.6,2.48328676]
[1773502347075,0.24799802,2073.3,2072.6,2.48328676]
[1773502348377,0.24799802,2073.3,2072.5,2.77899321]
[1773502348772,0.24799802,2073.3,2072.5,0.0037823]
[1773502349079,4.28211999,2072.7,2071.0,2.92626843]
[1773502349284,0.15580928,2072.1,2071.0,2.92626843]
[1773502349482,0.64261706,2072.0,2071.2,2.84323392]
[1773502349875,0.64880783,2072.0,2071.2,2.84662073]
[1773502351380,0.00619077,2072.0,2071.2,2.84662073]
[1773502351791,0.63196415,2072.0,2071.2,2.84662073]
[1773502352085,0.00619077,2072.0,2071.2,2.84662073]
[1773502352588,0.57896907,2072.6,2071.4,2.86911197]
[1773502353589,0.58333656,2072.6,2071.4,2.86911197]
[1773502356891,0.50377657,2072.5,2071.4,2.86911197]
[1773502359796,0.00436749,2072.6,2071.4,2.86911197]
[1773502359797,0.72219751,2072.6,2071.4,2.86911197]
[1773502364699,0.00436749,2072.6,2071.4,2.86911197]
[1773502365507,0.00436749,2072.6,2071.6,2.81251585]
[1773502370302,0.63602493,2073.0,2071.6,2.81251585]
[1773502371406,0.64034178,2073.0,2071.6,2.81251585]
[1773502372212,0.63361836,2072.9,2071.6,2.81251585]
[1773502373310,6.88972151,2072.9,2071.6,2.81251585]
[1773502373810,0.66038388,2072.8,2071.6,2.81251585]
[1773502374512,0.66038388,2072.8,2071.6,3.05015861]
[1773502375710,0.66038388,2072.8,2071.7,2.98232599]
[1773502376413,6.92734063,2072.8,2071.7,2.98232599]
[1773502376613,0.66038388,2072.8,2071.7,2.98232599]
[1773502377010,6.92932314,2072.8,2071.7,2.98232599]
[1773502377204,0.66038388,2072.8,2071.7,2.98232599]
[1773502381920,6.28012279,2072.9,2072.0,2.98232599]
[1773502382120,0.6537539,2073.0,2072.0,2.98232599]
[1773502382316,6.27927,2072.9,2072.0,2.98232599]
[1773502382517,0.6537539,2073.0,2072.0,2.98232599]
[1773502382718,6.27927,2072.9,2072.0,2.98232599]
[1773502383017,0.6537539,2073.0,2072.0,2.98232599]
[1773502383218,0.6537539,2073.0,2072.1,40.8]
[1773502383415,0.6537539,2073.0,2072.2,2.98232599]
[1773502383815,0.00431685,2073.0,2072.2,2.98232599]
[1773502384223,0.6528533,2073.0,2072.2,2.98232599]
[1773502385515,0.00431685,2073.0,2072.2,2.98232599]
[1773502387519,0.61411819,2073.0,2072.2,2.98232599]
[1773502388716,0.61411819,2073.0,2072.3,40.8]
[1773502388917,0.61411819,2073.0,2072.4,2.98232599]
[1773502390925,0.56858202,2072.9,2072.2,2.98232599]
[1773502391223,6.84838644,2072.8,2072.2,2.98232599]
[1773502391423,0.56858202,2072.8,2072.2,2.98232599]
[1773502400824,0.57858202,2072.8,2072.2,2.98232599]
[1773502402928,0.01,2072.8,2072.2,2.98232599]
[1773502404728,0.48222604,2072.8,2072.2,2.98232599]
[1773502407828,2.01026391,2072.8,2072.2,2.98232599]
[1773502410130,0.01,2072.8,2072.2,2.98232599]
[1773502410333,1.53235472,2073.0,2072.2,2.98232599]
[1773502410334,6.29134024,2072.9,2072.2,2.98232599]
[1773502410531,0.00431685,2073.0,2072.2,2.98232599]
[1773502410829,6.29134024,2072.9,2072.2,2.98232599]
[1773502411031,0.00431685,2073.0,2072.2,2.98232599]
[1773502411223,6.29131252,2072.9,2072.2,2.98232599]
[1773502411531,0.00431685,2073.0,2072.2,2.98232599]
[1773502411730,6.29131252,2072.9,2072.2,2.98232599]
[1773502411931,0.00431685,2073.0,2072.2,2.98232599]
[1773502415437,1.53235472,2073.0,2072.2,2.98232599]
[1773502415637,4.39330386,2073.3,2072.5,3.01922306]
[1773502415935,6.29132634,2073.2,2072.5,3.01922306]
[1773502416136,6.29132634,2073.1,2072.5,3.01922306]
[1773502416335,0.41264169,2073.3,2072.5,3.01922306]
[1773502416537,6.29100776,2073.2,2072.5,3.01922306]
[1773502416739,6.29100776,2073.1,2072.5,3.01922306]
[1773502416938,0.00586603,2073.2,2072.5,3.01922306]
[1773502417139,6.29100776,2073.1,2072.5,3.01922306]
[1773502417339,0.00586603,2073.2,2072.5,3.01922306]
[1773502417534,6.29100796,2073.1,2072.5,3.01922306]
[1773502417734,0.00586603,2073.2,2072.5,3.01922306]
[1773502417935,6.29100796,2073.1,2072.5,3.01922306]
[1773502418139,0.00586603,2073.2,2072.5,3.01922306]
[1773502418339,6.29078907,2073.1,2072.5,3.01922306]
[1773502418540,0.00586603,2073.2,2072.5,3.01922306]
[1773502418737,6.29078907,2073.1,2072.5,3.01922306]
[1773502418940,0.00586603,2073.2,2072.5,3.01922306]
[1773502419236,6.29078907,2073.1,2072.5,3.01922306]
[1773502419436,0.00586603,2073.2,2072.5,3.01922306]
[1773502419637,6.29056275,2073.1,2072.5,3.01922306]
[1773502419837,0.00586603,2073.2,2072.5,3.01922306]
[1773502420138,6.29056275,2073.1,2072.5,3.01922306]
[1773502420335,0.00586603,2073.2,2072.5,3.01922306]
[1773502420536,6.29024339,2073.1,2072.5,3.01922306]
[1773502420738,0.00586603,2073.2,2072.5,3.01922306]
[1773502420938,6.29024339,2073.1,2072.5,3.01922306]
[1773502421138,0.00586603,2073.2,2072.5,3.01922306]
[1773502421334,6.28986128,2073.1,2072.5,3.01922306]
[1773502421639,0.00586603,2073.2,2072.5,3.01922306]
[1773502421840,6.28986128,2073.1,2072.5,3.01922306]
[1773502422036,0.00586603,2073.2,2072.5,3.01922306]
[1773502422237,6.28943153,2073.1,2072.5,3.01922306]
[1773502422536,0.00586603,2073.2,2072.5,3.01922306]
[1773502422738,6.28943153,2073.1,2072.5,3.01922306]
[1773502422938,0.00586603,2073.2,2072.5,3.01922306]
[1773502423138,6.28943153,2073.1,2072.5,3.01922306]
[1773502423334,0.00586603,2073.2,2072.5,3.01922306]
[1773502423539,6.28900789,2073.1,2072.5,3.01922306]
[1773502423738,0.00586603,2073.2,2072.5,3.01922306]
[1773502426645,1.9307733,2073.4,2072.5,3.01922306]
[1773502426846,6.27422615,2073.3,2072.5,3.01922306]
[1773502427046,6.27422615,2073.2,2072.5,3.01922306]
[1773502427347,1.9307733,2073.4,2072.5,3.01922306]
[1773502427547,6.273841,2073.3,2072.5,3.01922306]
[1773502427747,1.93541281,2073.4,2072.5,3.01922306]
[1773502428747,0.36079868,2073.3,2072.5,3.01922306]
[1773502429951,1.53267738,2073.4,2072.5,3.01922306]
[1773502430146,1.8807426,2073.4,2072.5,3.01922306]
[1773502433149,0.39511461,2073.3,2072.5,3.01922306]
[1773502440656,1.90975401,2073.4,2072.5,3.01922306]
[1773502440952,0.38171614,2073.7,2072.7,2.70005668]
[1773502441155,6.27305327,2073.6,2072.7,2.70005668]
[1773502441451,0.38171614,2073.7,2072.9,2.718194]
[1773502441658,6.27350159,2073.6,2072.9,2.718194]
[1773502441857,0.33342366,2073.6,2072.9,2.718194]
[1773502442157,0.33914999,2073.6,2072.9,2.72222114]
[1773502442750,1.86718786,2073.6,2072.9,2.72222114]
[1773502443360,0.31122809,2073.5,2072.9,2.72222114]
[1773502443658,1.83729765,2073.6,2072.9,2.72222114]
[1773502446861,1.83729765,2073.6,2073.0,40.8]
[1773502447060,1.83729765,2073.6,2073.1,2.69905366]
[1773502448053,0.00572633,2073.6,2073.1,2.69905366]
[1773502448559,6.60231715,2073.8,2073.1,2.69905366]
[1773502448760,6.27217658,2073.7,2073.1,2.69905366]
[1773502448961,1.85817844,2073.8,2073.1,2.69905366]
[1773502449158,6.27217658,2073.7,2073.1,2.69905366]
[1773502449351,0.00445508,2073.7,2073.1,2.69905366]
[1773502451959,0.29168532,2073.7,2073.1,2.69905366]
[1773502452458,0.29168532,2073.7,2072.6,0.24515022]
[1773502452459,0.27489285,2073.1,2072.6,2.70548517]
[1773502453761,0.27489285,2073.1,2072.6,2.70939855]
[1773502454765,1.77693319,2073.2,2072.6,2.70939855]
[1773502461371,1.52803787,2072.8,2071.8,2.89096098]
[1773502461572,16.06983145,2073.1,2071.8,2.89096098]
[1773502461573,1.52803787,2072.5,2071.8,2.89096098]
[1773502462277,1.52803787,2072.5,2071.8,2.89672457]
[1773502462478,1.7543949,2072.5,2071.8,2.89672457]
[1773502464375,1.52803787,2072.1,2071.8,2.65663905]
[1773502464577,0.26364534,2072.4,2071.8,2.65663905]
[1773502464578,2.60915507,2072.4,2071.8,2.65663905]
[1773502465478,2.61481931,2072.4,2071.8,2.66189036]
[1773502465871,1.52803787,2072.3,2071.8,2.66189036]
[1773502466277,4.13719294,2072.3,2071.8,2.66189036]
[1773502467082,1.52803787,2072.3,2071.8,2.66189036]
[1773502467276,2.61481931,2072.4,2071.8,2.66189036]
[1773502467478,1.52803787,2072.3,2071.8,2.66189036]
[1773502467678,2.60915507,2072.3,2071.8,2.66189036]
[1773502472277,0.00566424,2072.4,2071.8,2.66189036]
[1773502473287,2.60915507,2072.8,2071.8,2.66189036]
[1773502474191,2.61361982,2072.8,2071.8,2.66189036]
[1773502474389,1.52868378,2072.7,2071.8,2.66189036]
[1773502474689,2.60915507,2072.3,2071.5,2.65663905]
[1773502475689,2.60915507,2072.3,2071.5,2.66209184]
[1773502480593,2.60915507,2072.5,2071.5,2.66209184]
[1773502485595,2.60915507,2072.6,2071.5,2.66209184]
[1773502486094,2.60915507,2072.6,2071.7,2.65663905]
[1773502494503,0.00446475,2072.8,2071.8,3.13707954]
[1773502494808,0.00446475,2072.8,2072.1,3.13707954]
[1773502495001,0.00446475,2072.8,2072.3,3.13707954]
[1773502496006,3.19452168,2073.0,2072.3,3.13707954]
[1773502496210,3.19452168,2073.3,2072.3,3.13707954]
[1773502496411,3.19452168,2073.1,2072.3,3.13707954]
[1773502497108,3.20053267,2073.1,2072.3,3.13707954]
[1773502497405,3.20053267,2073.1,2072.5,3.13707954]
[1773502502916,3.20053267,2073.1,2072.6,43.93707954]
[1773502504022,3.20053267,2073.1,2072.7,3.13707954]
[1773502506826,3.20053267,2073.1,2072.6,43.93707954]
[1773502507520,3.20053267,2073.1,2072.6,68.53807954]
[1773502507724,3.20053267,2073.1,2072.7,3.13707954]
[1773502510623,0.00601099,2073.1,2072.7,3.13707954]
[1773502511222,3.19452168,2073.3,2072.7,3.13707954]
[1773502512328,3.19889643,2073.3,2072.7,3.13707954]
[1773502516731,0.00437475,2073.3,2072.7,3.13707954]
[1773502517330,3.19889643,2073.3,2072.7,3.13707954]
[1773502528134,0.00437475,2073.3,2072.7,3.13707954]
[1773502529532,0.00437475,2073.3,2072.9,2.87034877]
[1773502529738,0.00437475,2073.3,2073.0,27.82734877]
[1773502529938,0.00437475,2073.3,2073.0,27.83293304]
[1773502531041,2.84034707,2073.3,2073.0,27.83293304]
[1773502531742,0.00437475,2073.3,2073.0,27.83293304]
[1773502531944,2.84034707,2073.3,2073.0,27.83293304]
[1773502532939,2.84034707,2073.3,2073.0,23.73298206]
[1773502533139,1.40385025,2073.1,2072.6,1.3238086]
[1773502533543,2.83597232,2072.7,2071.7,2.87034877]
[1773502533747,2.83597232,2072.4,2071.9,15.0]
[1773502533945,2.83597232,2072.4,2071.9,17.87034877]
[1773502534146,2.83597232,2072.4,2071.9,17.87418216]
[1773502534841,2.83597232,2072.4,2072.0,2.87034877]
[1773502535043,2.83597232,2072.7,2072.0,2.87034877]
[1773502539048,2.83597232,2072.6,2071.9,2.87418216]
[1773502539243,2.83597232,2072.6,2072.0,17.87593304]
[1773502542946,2.83597232,2072.6,2072.1,2.87034877]
[1773502548949,2.83597232,2072.6,2072.0,15.00558427]
[1773502549254,2.83597232,2072.0,2071.3,2.87034877]
[1773502550357,2.83597232,2072.0,2071.3,2.87565461]
[1773502557063,4.01415205,2071.7,2071.3,0.00530584]
[1773502557264,4.0183059,2071.7,2071.3,0.00530584]
[1773502560866,4.0183059,2071.7,2071.3,4.17650593]
[1773502564461,0.00415385,2071.7,2071.3,4.17650593]
[1773502564966,3.90165529,2071.7,2071.3,4.17650593]
[1773502570565,3.84357668,2072.1,2071.4,4.17120009]
[1773502570768,10.11586741,2072.0,2071.4,4.17120009]